bitfinex/quotes_ETHUSD_20250724
["timestamp","ask_amount","ask_price","bid_price","bid_amount"]
[1753386064063,3.0,3727.0,3726.6,0.9091]
[1753386064269,4.245,3727.1,3726.8,3.44936714]
[1753386064423,2.68198478,3728.6,3726.8,3.44936714]
[1753386064424,2.68220293,3728.3,3726.9,0.9091]
[1753386064625,7.795,3728.2,3727.6,2.68262766]
[1753386064823,0.55,3728.2,3727.4,2.68283268]
[1753386065023,1.7573,3728.4,3727.6,0.7932]
[1753386065024,0.8149,3728.4,3727.6,0.7932]
[1753386065266,7.245,3728.3,3727.7,0.4518]
[1753386065652,7.245,3728.3,3727.7,3.13441863]
[1753386065869,7.7496,3728.8,3728.0,2.68239767]
[1753386066162,8.1142,3728.7,3728.1,0.4518]
[1753386066324,5.1142,3728.7,3728.1,0.4518]
[1753386066535,4.245,3728.7,3728.1,3.13408729]
[1753386066735,4.245,3728.7,3727.6,0.7932]
[1753386066736,0.7716,3729.4,3728.2,0.46538109]
[1753386066963,4.245,3729.5,3728.9,2.68169353]
[1753386067181,4.245,3729.6,3729.0,3.59071479]
[1753386067479,4.245,3729.6,3729.2,2.68153823]
[1753386067855,3.0,3729.5,3729.3,0.4518]
[1753386068275,4.245,3729.6,3729.3,0.4518]
[1753386068641,3.0,3729.5,3729.3,0.4518]
[1753386068972,3.0,3729.5,3729.2,0.4573]
[1753386068973,3.5697809,3729.5,3729.4,0.4518]
[1753386069177,3.7041809,3729.5,3729.4,0.4518]
[1753386069473,0.5697809,3729.5,3729.4,0.4518]
[1753386069649,3.1344,3729.6,3729.4,0.9091]
[1753386069840,3.1344,3729.6,3729.4,3.59047556]
[1753386070044,3.0,3729.6,3729.4,2.68137556]
[1753386070240,6.979,3730.2,3729.5,0.9091]
[1753386070474,0.93544969,3730.2,3729.6,0.4518]
[1753386070641,0.1344,3729.9,3729.6,0.4518]
[1753386070948,3.0,3729.8,3729.7,0.9091]
[1753386072175,3.0,3729.8,3729.7,0.4518]
[1753386073660,4.3794,3729.9,3729.7,0.4518]
[1753386073980,3.0,3729.9,3729.7,0.9091]
[1753386074137,3.0,3729.9,3729.7,0.4518]
[1753386074340,4.244,3730.0,3729.8,0.9091]
[1753386074579,7.244,3730.0,3729.9,0.4518]
[1753386075381,7.244,3730.0,3729.7,2.68116878]
[1753386075539,7.244,3730.0,3729.8,0.4553]
[1753386075943,0.55,3729.6,3728.5,0.767]
[1753386076248,4.243,3729.5,3728.7,2.68184947]
[1753386076573,3.0,3729.4,3728.8,0.4553]
[1753386076774,3.0,3729.4,3728.6,0.4418]
[1753386076775,3.0,3729.2,3728.5,0.767]
[1753386076973,3.0,3729.2,3728.5,1.2223]
[1753386076974,5.6816475,3729.1,3728.5,1.2223]
[1753386077653,3.0,3729.2,3728.7,2.68189194]
[1753386077856,3.0,3729.2,3728.8,0.4553]
[1753386078059,3.0,3729.2,3728.7,0.4418]
[1753386078262,3.0,3729.2,3728.9,0.4553]
[1753386078861,3.0,3729.2,3728.7,0.4418]
[1753386079067,3.0,3729.2,3728.8,0.4553]
[1753386079277,3.0,3729.2,3728.8,0.8971]
[1753386079461,3.0,3729.2,3728.9,0.4553]
[1753386079992,5.6815443,3729.2,3728.9,0.4553]
[1753386080493,5.6815443,3729.2,3728.3,3.13747684]
[1753386080494,2.68173813,3729.0,3728.3,3.13747684]
[1753386080698,5.68173813,3729.0,3728.3,3.13747684]
[1753386080997,3.0,3729.0,3728.5,2.68203951]
[1753386081215,2.68176665,3728.9,3728.2,0.4418]
[1753386081369,2.68176665,3728.9,3728.5,0.4553]
[1753386081570,5.68170568,3729.0,3728.5,0.4553]
[1753386081768,3.0,3729.0,3728.5,0.4553]
[1753386083401,3.0,3729.0,3728.4,0.01357534]
[1753386083563,3.0,3729.0,3728.6,3.13725999]
[1753386083896,3.0,3729.0,3728.7,0.4553]
[1753386085349,3.0,3729.0,3728.5,0.4418]
[1753386085600,3.0,3729.0,3728.6,0.4553]
[1753386085983,0.1344,3728.8,3728.6,0.4553]
[1753386086659,0.55,3728.3,3727.3,0.4428]
[1753386086865,5.6823399,3728.1,3727.7,0.001]
[1753386087565,3.0,3727.9,3727.7,0.001]
[1753386088005,3.0,3728.1,3727.7,0.4563]
[1753386088777,3.0,3728.1,3727.7,0.001]
[1753386088986,0.9399,3728.0,3727.7,0.001]
[1753386089208,0.4511,3728.0,3727.7,0.001]
[1753386089382,3.4888,3728.1,3727.7,0.001]
[1753386089699,3.0,3728.1,3727.7,0.4563]
[1753386090069,3.0,3727.9,3727.7,0.001]
[1753386090885,3.9399,3728.1,3727.7,0.001]
[1753386091086,5.68236623,3728.1,3727.7,0.001]
[1753386091495,0.8199,3728.4,3727.7,0.001]
[1753386091672,4.242,3728.4,3727.8,0.8971]
[1753386091870,4.242,3728.4,3727.8,3.57958562]
[1753386092191,3.0,3728.3,3727.8,0.4553]
[1753386092908,6.6221729,3728.2,3727.7,0.001]
[1753386093122,2.68233303,3728.1,3727.7,0.001]
[1753386093807,0.9399,3728.2,3727.7,0.001]
[1753386094015,2.68235214,3728.1,3727.7,0.001]
[1753386094707,0.9399,3728.2,3727.7,0.001]
[1753386096173,0.9399,3728.2,3727.7,0.4563]
[1753386096377,0.4511,3728.2,3727.7,0.4563]
[1753386096617,0.1344,3728.0,3727.7,0.4563]
[1753386097928,0.1344,3728.0,3727.7,3.13891317]
[1753386098547,0.1344,3728.0,3727.7,0.4563]
[1753386098839,0.1344,3728.0,3727.7,0.001]
[1753386099028,0.1344,3728.0,3727.7,0.4563]
[1753386100040,0.1344,3728.4,3727.8,0.8971]
[1753386100239,3.0,3728.5,3728.2,0.1344]
[1753386100545,3.0,3728.5,3728.3,0.4553]
[1753386103305,1.3391,3728.4,3727.7,0.001]
[1753386103642,6.36694734,3727.8,3727.7,0.001]
[1753386104021,7.30684734,3727.8,3727.7,0.001]
[1753386105617,5.81694734,3727.8,3727.7,0.001]
[1753386105821,6.73734734,3727.8,3727.7,0.001]
[1753386108817,6.26474734,3727.8,3727.7,0.001]
[1753386109016,7.63206812,3727.8,3727.7,0.001]
[1753386111953,7.15946812,3727.8,3727.7,0.001]
[1753386112555,7.63206812,3727.8,3727.7,0.001]
[1753386112851,7.63206812,3727.8,3727.3,0.001]
[1753386112852,3.48093522,3727.4,3727.3,0.001]
[1753386113070,7.03093522,3727.4,3727.3,0.001]
[1753386113455,7.47873522,3727.4,3727.3,0.001]
[1753386113774,0.815,3726.4,3724.2,0.4477]
[1753386113976,11.1741066,3727.4,3723.6,2.819]
[1753386113977,0.815,3726.9,3725.5,9.19088821]
[1753386114272,0.89472078,3727.8,3724.3,7.9702]
[1753386114273,0.815,3727.3,3726.4,0.7972]
[1753386114472,0.71189418,3728.2,3724.7,5.819]
[1753386114473,0.815,3728.3,3727.0,9.19088821]
[1753386114674,0.815,3728.3,3727.4,2.68277796]
[1753386114675,2.68225953,3728.2,3727.4,2.68277796]
[1753386114878,1.4704,3728.1,3727.2,0.7972]
[1753386115241,3.0,3727.8,3727.2,0.7972]
[1753386115743,5.68240835,3728.0,3727.2,3.48017293]
[1753386117170,3.0,3728.0,3727.2,0.7972]
[1753386117351,3.0,3727.8,3727.2,0.7972]
[1753386117547,5.68241872,3728.0,3727.2,3.48014727]
[1753386118769,3.0,3728.0,3727.3,2.68290473]
[1753386119273,5.68241625,3728.0,3727.2,3.480165]
[1753386119872,3.0,3728.0,3727.3,2.68289967]
[1753386120274,3.0,3727.8,3727.2,3.48017598]
[1753386120471,3.0,3728.0,3727.2,0.7972]
[1753386120975,5.68242172,3728.0,3727.2,3.48016712]
[1753386121178,2.6824917,3727.9,3727.2,0.7972]
[1753386121475,3.0,3728.0,3727.2,0.7972]
[1753386121773,5.68241556,3728.0,3727.2,0.7972]
[1753386121984,5.68241556,3728.0,3727.2,3.48017037]
[1753386122166,5.68241556,3728.0,3726.5,2.68342732]
[1753386122167,0.55,3727.6,3726.7,0.7889]
[1753386122369,2.68305941,3727.1,3726.5,0.4515]
[1753386122577,2.68305941,3727.1,3726.4,8.19614314]
[1753386122758,2.68327735,3726.8,3726.4,0.7889]
[1753386122976,0.61574173,3726.7,3726.1,0.1344]
[1753386123178,0.1344,3726.4,3725.8,0.7736]
[1753386123377,0.1344,3726.2,3725.9,2.68391529]
[1753386123603,3.55,3726.6,3725.9,2.68391529]
[1753386123806,0.1344,3726.3,3725.9,0.4515]
[1753386123973,0.1344,3726.3,3725.9,0.8992]
[1753386124189,0.1344,3726.3,3725.9,3.58305824]
[1753386124388,0.1344,3726.3,3726.0,2.68382345]
[1753386124583,0.1344,3726.3,3725.9,0.8992]
[1753386125268,0.1344,3726.3,3726.0,2.68383423]
[1753386125477,0.1344,3726.3,3725.9,3.58309818]
[1753386127206,0.4478,3726.7,3726.0,3.58304326]
[1753386127511,0.1344,3726.4,3726.0,0.8992]
[1753386127672,0.1344,3726.4,3726.1,2.68377087]
[1753386128495,0.1344,3726.4,3726.2,0.4515]
[1753386128878,3.0,3726.8,3726.3,0.8992]
[1753386129208,0.1344,3726.6,3726.3,0.8992]
[1753386129811,0.1344,3726.6,3726.3,3.58281845]
[1753386130570,0.1344,3726.6,3726.4,2.68353543]
[1753386130773,0.1344,3726.8,3726.4,3.58273015]
[1753386131395,0.8099,3727.5,3726.4,0.4515]
[1753386131596,0.1344,3726.5,3725.4,0.4515]
[1753386131798,0.1344,3725.9,3725.4,0.1344]
[1753386131991,0.5822,3725.9,3725.5,4.267]
[1753386132309,0.1344,3726.0,3725.6,0.8992]
[1753386132673,3.0,3725.9,3725.7,4.266]
[1753386132914,3.1344,3726.0,3725.7,4.266]
[1753386133087,2.68398733,3725.8,3725.7,4.266]
[1753386133404,2.68418874,3725.6,3725.4,4.265]
[1753386133572,2.68420346,3725.5,3725.4,4.265]
[1753386133778,0.5822,3725.8,3725.3,4.3984]
[1753386133977,2.68425989,3725.5,3725.3,0.1344]
[1753386134177,2.68405937,3725.7,3725.3,0.1344]
[1753386134398,2.68405937,3725.7,3724.5,2.68487185]
[1753386134399,3.0,3725.4,3724.6,0.4477]
[1753386134597,2.68463299,3725.0,3724.6,4.262]
[1753386134808,2.68463299,3725.0,3724.7,0.1344]
[1753386135182,0.2819033,3725.0,3724.4,0.001]
[1753386135379,2.81905762,3724.9,3724.4,0.1354]
[1753386135589,0.1344,3724.9,3724.4,0.1354]
[1753386135789,0.1344,3724.9,3724.5,0.9256]
[1753386136016,0.1344,3725.4,3724.8,0.1344]
[1753386136328,0.55,3726.1,3725.0,0.8324]
[1753386136329,0.4439,3726.1,3725.0,0.8324]
[1753386136624,0.1344,3725.8,3725.3,0.1344]
[1753386136992,0.8282,3726.2,3725.6,2.68412168]
[1753386137320,0.1344,3726.0,3725.5,2.8186]
[1753386137510,0.1344,3726.0,3725.6,3.60970808]
[1753386137886,0.1344,3726.3,3725.7,0.9256]
[1753386138086,0.1344,3726.3,3725.8,0.1344]
[1753386138087,2.6837804,3726.1,3725.8,0.1344]
[1753386138313,2.68371523,3726.2,3725.8,0.1344]
[1753386138545,0.1344,3726.3,3725.8,0.1344]
[1753386138838,3.0,3725.8,3725.3,0.1344]
[1753386138987,3.1344,3725.9,3725.3,0.1344]
[1753386139189,0.1344,3725.9,3725.4,0.4906]
[1753386139939,2.68355517,3726.4,3725.6,2.68407926]
[1753386140136,0.1344,3726.2,3725.7,0.1344]
[1753386140429,3.0,3726.1,3725.7,0.1344]
[1753386141291,2.68384093,3726.1,3725.7,0.1344]
[1753386141713,3.4439,3726.1,3725.7,0.1344]
[1753386142234,3.12767168,3726.1,3725.7,0.1344]
[1753386142421,3.4439,3726.1,3725.7,0.1344]
[1753386143540,0.1344,3726.2,3725.7,0.1344]
[1753386144041,3.0,3726.1,3725.7,0.1344]
[1753386144204,0.94555455,3726.1,3725.7,0.1344]
[1753386144418,0.5783,3726.2,3725.7,0.1344]
[1753386144796,0.1344,3726.2,3725.7,0.1344]
[1753386145239,0.1344,3726.2,3725.7,2.81844821]
[1753386145557,0.1344,3726.2,3725.7,0.1344]
[1753386145897,0.1344,3726.2,3725.9,2.68385212]
[1753386146192,3.0,3726.6,3726.1,3.61207123]
[1753386146398,3.0,3726.6,3726.2,0.9256]
[1753386146941,5.68346084,3726.6,3726.2,0.9256]
[1753386147109,2.68350591,3726.5,3726.2,0.9256]
[1753386147311,2.68350591,3726.5,3726.2,0.4906]
[1753386147511,3.0,3726.6,3726.2,0.4906]
[1753386148033,3.0,3726.6,3726.2,0.9256]
[1753386148199,2.68350217,3726.5,3726.2,0.9256]
[1753386148710,2.68349003,3726.5,3726.2,0.9256]
[1753386148908,3.0,3726.6,3726.1,0.9283]
[1753386149218,5.6834252,3726.6,3726.2,0.9256]
[1753386150328,3.0,3726.6,3726.2,0.9256]
[1753386150493,5.68342066,3726.6,3726.2,0.4906]
[1753386150700,2.68349707,3726.5,3726.2,0.4906]
[1753386151030,5.68342537,3726.6,3726.2,0.4906]
[1753386151342,5.68342537,3726.6,3726.3,0.9256]
[1753386151343,3.0,3726.6,3726.3,0.9256]
[1753386151526,3.0,3726.6,3726.4,0.9256]
[1753386151726,3.0,3726.6,3726.4,0.1344]
[1753386152037,3.0,3726.6,3726.5,0.9256]
[1753386152424,2.68289289,3727.4,3726.5,9.66352929]
[1753386152614,0.1344,3727.4,3726.7,2.68329225]
[1753386152936,0.1344,3727.4,3726.8,3.74321857]
[1753386153144,3.0,3727.3,3726.8,3.74321857]
[1753386153351,3.0,3727.3,3726.8,0.5694]
[1753386153524,3.1344,3727.4,3726.9,0.9256]
[1753386153726,2.68290719,3727.3,3726.9,0.4906]
[1753386153949,5.81729183,3727.4,3726.9,0.4906]
[1753386154149,3.1344,3727.4,3726.9,0.4906]
[1753386154448,3.1364,3727.4,3727.0,0.9256]
[1753386154746,3.002,3727.4,3727.1,3.74305116]
[1753386154947,3.002,3727.4,3727.1,3.25245116]
[1753386155256,3.002,3727.4,3727.1,1.06]
[1753386155622,0.002,3727.4,3727.1,1.06]
[1753386155949,3.002,3727.4,3727.2,3.60855143]
[1753386156248,0.002,3727.4,3727.2,0.9256]
[1753386156414,0.002,3727.4,3727.2,0.435]
[1753386156743,3.002,3727.4,3727.2,3.60856916]
[1753386157336,3.002,3727.4,3727.3,2.68290719]
[1753386157532,3.002,3727.4,3727.2,0.9256]
[1753386158550,0.002,3727.4,3727.2,0.9256]
[1753386158757,0.002,3727.4,3727.2,3.97404062]
[1753386158966,0.002,3727.4,3727.2,3.48344062]
[1753386159147,0.002,3727.4,3727.2,0.80051226]
[1753386159668,0.002,3727.4,3727.2,2.68297284]
[1753386160040,0.002,3727.4,3727.1,2.81742858]
[1753386160248,0.002,3727.4,3727.1,3.74302858]
[1753386160446,0.002,3727.4,3727.1,1.06]
[1753386160877,0.8,3727.3,3727.1,3.74304181]
[1753386161076,0.8,3727.3,3727.1,3.30804181]
[1753386161639,0.8,3727.3,3727.1,0.625]
[1753386162848,0.8,3727.3,3727.1,0.1344]
[1753386163243,0.002,3727.4,3727.1,0.1344]
[1753386163472,0.002,3727.4,3727.1,2.81744749]
[1753386163644,0.002,3727.4,3727.1,0.1344]
[1753386164683,1.05429412,3727.4,3727.1,0.1344]
[1753386164882,3.0,3727.2,3726.8,0.1344]
[1753386165092,3.6108,3727.3,3726.8,0.1344]
[1753386165293,3.1344,3727.3,3726.8,0.1344]
[1753386165846,0.8,3726.9,3726.8,0.1344]
[1753386166593,1.2641,3726.9,3726.4,0.1344]
[1753386166896,0.8,3726.9,3726.4,2.81795172]
[1753386167207,0.8,3726.9,3726.4,3.75195172]
[1753386167950,0.8,3726.9,3726.4,1.0684]
[1753386168985,0.8,3726.9,3726.4,3.7519443]
[1753386169761,5.047,3726.9,3726.5,0.934]
[1753386170087,5.047,3726.9,3726.7,0.1344]
[1753386170587,5.047,3726.9,3726.7,2.81768755]
[1753386171173,8.047,3726.9,3726.7,0.1344]
[1753386171376,8.047,3726.9,3726.8,2.68326714]
[1753386173318,8.047,3726.9,3726.7,2.81771372]
[1753386174603,8.047,3726.9,3726.7,0.1344]
[1753386175504,8.047,3726.9,3726.7,2.81772942]
[1753386176090,8.047,3726.9,3726.8,2.68326714]
[1753386176701,8.047,3726.9,3726.7,3.26781089]
[1753386178122,8.047,3726.9,3726.8,0.934]
[1753386178635,8.047,3726.9,3726.8,3.61726714]
[1753386179131,8.047,3726.9,3726.8,3.13336714]
[1753386179720,8.047,3726.9,3726.8,2.68326714]
[1753386180086,3.8,3726.9,3726.8,2.68326714]
[1753386180305,0.8,3726.9,3726.8,5.03710024]
[1753386182027,0.002,3727.4,3727.3,2.68290719]
[1753386182323,0.002,3727.4,3727.3,7.82930719]
[1753386182827,0.002,3727.4,3727.3,8.76330719]
[1753386186226,0.002,3727.4,3727.3,0.8994]
[1753386186426,0.002,3727.4,3727.3,0.1344]
[1753386186626,0.4661,3727.4,3727.3,0.1344]
[1753386187334,0.802,3727.4,3727.3,0.1344]
[1753386188144,0.802,3727.4,3727.3,1.0684]
[1753386188343,0.802,3727.4,3727.3,0.6183]
[1753386188555,0.802,3727.4,3727.3,0.1344]
[1753386191753,0.802,3727.4,3727.3,3.75130719]
[1753386192361,0.802,3727.4,3727.3,5.00018914]
[1753386193063,0.802,3727.4,3727.3,3.75130719]
[1753386193239,0.802,3727.4,3727.3,7.99630719]
[1753386193553,0.802,3727.4,3727.3,3.75130719]
[1753386193756,0.802,3727.4,3727.3,7.99630719]
[1753386194184,0.802,3727.4,3727.3,8.75050719]
[1753386194326,0.802,3727.4,3727.3,10.49930914]
[1753386195936,0.002,3727.4,3727.3,10.49930914]
[1753386196132,1e-08,3727.7,3727.6,2.68269127]
[1753386196358,1e-08,3727.7,3727.6,13.90096338]
[1753386196524,1e-08,3727.7,3727.6,16.09661849]
[1753386196728,1e-08,3727.7,3727.6,17.03771849]
[1753386197351,1e-08,3727.7,3727.6,10.98324638]
[1753386197754,1e-08,3727.7,3727.6,10.53114638]
[1753386198264,1e-08,3727.7,3727.6,10.98324638]
[1753386204041,0.002,3728.2,3728.0,3.45780343]
[1753386204243,0.002,3728.9,3728.4,3.45751565]
[1753386204552,0.002,3728.9,3728.8,8.87070004]
[1753386204863,0.002,3730.0,3729.6,2.68125268]
[1753386205069,0.002,3730.0,3729.6,6.92325268]
[1753386205267,0.002,3730.0,3729.6,7.54665268]
[1753386205431,0.002,3730.0,3729.6,9.22010936]
[1753386205932,0.002,3730.0,3729.6,6.04985668]
[1753386206132,0.002,3730.0,3729.6,8.73110936]
[1753386206667,0.002,3730.0,3729.6,4.48910936]
[1753386206866,0.002,3730.0,3729.6,8.73110936]
[1753386208233,0.002,3730.0,3729.6,8.73010936]
[1753386208434,0.002,3730.0,3729.6,10.42900936]
[1753386208834,0.002,3730.0,3729.6,9.94000936]
[1753386209062,0.002,3730.0,3729.6,10.42900936]
[1753386211032,1e-08,3729.7,3729.6,10.42900936]
[1753386212042,0.002,3730.0,3729.6,10.42900936]
[1753386212275,0.002,3730.0,3729.9,12.67775319]
[1753386212571,0.002,3730.0,3729.9,17.05215319]
[1753386212874,0.002,3730.8,3730.7,2.68046211]
[1753386213188,0.002,3730.8,3730.7,7.05486211]
[1753386213358,0.002,3730.8,3730.7,2.81486211]
[1753386213547,0.002,3730.8,3730.7,3.8697733]
[1753386213729,0.002,3730.8,3730.7,8.1087733]
[1753386216947,0.002,3730.8,3730.7,8.5977733]
[1753386217343,0.002,3730.8,3730.7,9.0498733]
[1753386218579,0.002,3730.8,3730.7,4.8108733]
[1753386218963,0.002,3730.8,3730.7,9.0488733]
[1753386219174,0.002,3730.8,3730.7,8.5967733]
[1753386219377,0.002,3730.8,3730.7,9.0488733]
[1753386220483,0.002,3730.8,3730.7,18.23088947]
[1753386224482,0.002,3730.8,3730.7,3.8697733]
[1753386224683,0.9351,3730.8,3730.7,7.05086211]
[1753386225087,0.4667,3730.8,3730.7,7.05086211]
[1753386225954,0.4667,3730.8,3730.7,2.81486211]
[1753386226168,0.4667,3730.8,3730.7,7.05086211]
[1753386226683,0.4667,3730.8,3730.7,2.81486211]
[1753386226884,0.946,3730.8,3730.7,0.1344]
[1753386227089,0.946,3730.8,3730.7,7.04986211]
[1753386227872,0.946,3730.8,3730.7,2.81486211]
[1753386228060,0.946,3730.8,3730.7,7.04986211]
[1753386228758,1.746,3730.8,3730.7,7.04986211]
[1753386229765,0.802,3730.8,3730.7,13.08745827]
[1753386229967,0.002,3730.8,3730.7,14.66426424]
[1753386230172,0.002,3730.8,3730.7,15.14156424]
[1753386230394,0.002,3730.8,3730.7,15.60976424]
[1753386231267,0.002,3730.8,3730.7,14.66426424]
[1753386231473,0.002,3730.8,3730.7,0.1344]
[1753386231693,1.7419,3730.8,3730.7,4.3684]
[1753386234084,2.5419,3730.8,3730.7,4.3684]
[1753386235671,2.0626,3730.8,3730.7,7.04886211]
[1753386236007,2.0626,3730.8,3730.7,7.04786211]
[1753386236008,2.5419,3730.8,3730.7,7.04786211]
[1753386236691,0.802,3730.8,3730.7,7.04786211]
[1753386237268,0.002,3730.8,3730.7,7.04786211]
[1753386240207,0.002,3730.8,3730.7,8.62446697]
[1753386241119,0.002,3730.8,3730.7,7.04786211]
[1753386241405,0.9254,3730.8,3730.7,4.3674]
[1753386241776,0.9254,3730.8,3730.7,7.04786211]
[1753386241981,0.9254,3730.8,3730.7,4.3674]
[1753386242377,0.9254,3730.8,3730.7,7.04786211]
[1753386242625,0.4461,3730.8,3730.7,7.04786211]
[1753386243016,0.4461,3730.8,3730.7,2.81486211]
[1753386243185,0.002,3730.8,3730.7,7.04686211]
[1753386243384,0.002,3730.8,3730.7,7.7131278]
[1753386243617,0.802,3730.8,3730.7,7.7131278]
[1753386243914,0.002,3730.8,3730.7,7.7131278]
[1753386244487,0.002,3730.8,3730.7,9.4594278]
[1753386245902,0.002,3730.8,3730.7,0.1344]
[1753386246103,1.6866,3730.8,3730.7,4.3654]
[1753386247390,1.6866,3730.8,3730.7,7.04586211]
[1753386247594,0.4461,3730.8,3730.7,7.04586211]
[1753386248329,3.9254,3730.8,3730.7,0.1344]
[1753386248495,5.19447,3730.8,3730.6,4.231]
[1753386248689,1.6867,3730.7,3729.7,0.4773]
[1753386248905,0.9234,3730.6,3730.3,0.1344]
[1753386249106,0.9234,3730.6,3730.3,4.3644]
[1753386249330,0.7633,3730.7,3729.6,1.3103]
[1753386249331,0.9234,3730.5,3729.6,1.3103]
[1753386249495,0.9234,3730.4,3730.2,0.1344]
[1753386249697,0.9234,3730.4,3730.2,4.3644]
[1753386249996,3.79680577,3730.7,3730.2,4.3644]
[1753386250325,0.9234,3730.3,3730.2,4.3644]
[1753386251221,0.9234,3730.3,3730.2,7.0452214]
[1753386251622,0.7633,3730.7,3730.6,2.68053396]
[1753386251927,0.802,3730.8,3730.6,7.04491825]
[1753386252138,0.802,3730.8,3730.7,2.68046211]
[1753386252294,1.2461,3730.8,3730.6,0.1344]
[1753386252494,1.2461,3730.8,3730.3,1.3105]
[1753386252495,0.4793,3730.7,3729.9,0.8332]
[1753386252812,0.4793,3730.7,3730.5,0.1344]
[1753386253012,0.4441,3730.6,3730.5,4.23]
[1753386253222,0.9234,3730.6,3730.5,4.23]
[1753386256532,0.9234,3730.6,3730.3,2.81514398]
[1753386256832,0.9234,3730.6,3730.5,4.229]
[1753386259034,0.4441,3730.6,3730.5,4.229]
[1753386259801,1.2764,3730.8,3730.5,4.229]
[1753386260038,1.7494,3730.8,3730.5,4.229]
[1753386260840,1.7494,3730.8,3730.5,6.90960522]
[1753386261005,0.802,3730.8,3730.6,2.68052823]
[1753386261206,0.802,3730.8,3730.7,4.228]
[1753386263909,4.7494,3730.8,3730.7,4.228]
[1753386264316,1.63618246,3730.8,3730.5,0.1344]
[1753386264610,0.50650577,3730.7,3730.5,4.227]
[1753386264811,3.66137176,3730.7,3730.5,4.227]
[1753386265027,2.71397176,3730.7,3730.5,4.227]
[1753386265232,0.9474,3730.6,3730.5,4.227]
[1753386266366,1.3286,3730.5,3730.3,0.1344]
[1753386266657,7.00949327,3730.1,3730.0,0.001]
[1753386266804,11.23549327,3730.1,3730.0,0.001]
[1753386267002,12.18289327,3730.1,3730.0,0.001]
[1753386267243,13.66926326,3730.1,3730.0,0.001]
[1753386268847,11.15849327,3730.1,3730.0,0.001]
[1753386269022,11.63289327,3730.1,3730.0,0.001]
[1753386269349,4.2516,3730.1,3730.0,0.001]
[1753386270217,3.7786,3730.1,3730.0,0.001]
[1753386270542,3.0,3730.1,3730.0,0.001]
[1753386271513,7.7968891,3730.1,3730.0,0.001]
[1753386271946,5.11599583,3730.1,3730.0,0.001]
[1753386272525,7.7968891,3730.1,3730.0,0.001]
[1753386273745,3.0,3730.1,3730.0,0.001]
[1753386274923,3.0,3730.1,3730.0,0.462]
[1753386275123,3.0,3730.1,3730.0,0.001]
[1753386279570,3.1344,3730.5,3730.0,3.57880592]
[1753386279968,3.1344,3730.5,3730.0,0.8979]
[1753386280172,3.6074,3730.5,3730.0,0.462]
[1753386281237,4.0818,3730.5,3730.0,0.462]
[1753386281495,0.1344,3730.5,3730.0,0.001]
[1753386281638,0.9364,3730.8,3730.2,6.17452333]
[1753386281834,0.9364,3730.8,3730.3,3.14174953]
[1753386282037,0.9364,3730.8,3730.4,2.68066472]
[1753386282242,0.9364,3730.8,3730.4,0.461]
[1753386282441,0.802,3730.8,3730.5,3.14160161]
[1753386282642,0.802,3730.8,3730.5,1.0313]
[1753386282851,3.802,3730.8,3730.5,0.1344]
[1753386283051,1.275,3730.8,3730.5,0.1344]
[1753386284778,1.275,3730.8,3730.5,2.81500274]
[1753386285071,0.802,3730.8,3730.5,0.1344]
[1753386286874,0.802,3730.8,3730.7,2.68046211]
[1753386287051,0.802,3730.8,3730.7,3.63386211]
[1753386287254,0.802,3730.8,3730.7,8.82206211]
[1753386287455,0.002,3730.8,3730.7,8.82206211]
[1753386296449,0.002,3730.8,3730.7,4.60006211]
[1753386296656,0.002,3730.8,3730.7,9.54612829]
[1753386300397,1e-08,3731.2,3731.1,0.7716]
[1753386300699,0.8156,3733.0,3731.6,3.45141562]
[1753386300872,0.002,3733.0,3731.9,9.49132353]
[1753386301077,0.002,3733.0,3731.9,15.74871183]
[1753386301267,1e-08,3732.3,3732.2,3.48718481]
[1753386301471,1e-08,3732.3,3732.2,7.83678481]
[1753386301672,1e-08,3732.3,3732.2,8.79018481]
[1753386301863,1e-08,3732.3,3732.2,3.62078481]
[1753386302183,1e-08,3732.3,3732.2,7.02898481]
[1753386302519,0.48740001,3732.3,3732.2,0.1336]
[1753386302795,1.72340001,3732.3,3732.2,0.1336]
[1753386302994,1.72340001,3732.3,3732.2,4.3496]
[1753386303609,1.72340001,3732.3,3732.2,4.3486]
[1753386304502,0.80000001,3732.3,3732.2,4.3486]
[1753386305490,0.80000001,3732.3,3732.2,7.02798481]
[1753386305691,0.80000001,3732.3,3732.2,4.3486]
[1753386306005,0.80000001,3732.3,3732.2,7.02798481]
[1753386306492,0.80000001,3732.3,3732.2,2.81298481]
[1753386306697,0.80000001,3732.3,3732.2,4.3476]
[1753386307106,1.72340001,3732.3,3732.2,4.3476]
[1753386307685,0.80000001,3732.3,3732.2,7.02698481]
[1753386308079,0.80000001,3732.3,3732.2,4.3476]
[1753386308985,0.80000001,3732.3,3732.2,0.1336]
[1753386309309,1.72340001,3732.3,3732.2,4.3466]
[1753386309510,1.72340001,3732.3,3732.2,0.1336]
[1753386309688,1.72340001,3732.3,3732.2,4.3466]
[1753386311012,1.72340001,3732.3,3731.2,0.8174]
[1753386311013,5.15382608,3732.3,3731.2,0.8174]
[1753386311182,0.95689231,3732.2,3731.9,0.1336]
[1753386311382,0.95689231,3732.2,3732.0,4.213]
[1753386311616,0.9234,3732.1,3732.0,4.213]
[1753386314589,0.9234,3732.1,3732.0,6.89247299]
[1753386314790,0.9234,3732.1,3732.0,4.213]